{"text_format":"2","workbook":"xlsx","n_sheets":1,"sheets":["Sheet1"],"not_rendered":{"charts":0,"images":3,"macros":0,"external_links":0,"defined_names":0,"comments":0,"pivot_tables":0},"unopened":[],"bounds":{"document_bytes":16777216,"sheet_cells":100000,"run_cost":"one","rows_first":2000,"rows_last":500,"rows_between":2000,"halvings":0,"cell_chars":16384,"cell_head_chars":4096},"cells_cut":0,"cells_raw":0,"read":"whole","date_system":"1900"}

{"sheet":"Sheet1","index":0,"n_rows":44,"n_cols":9,"rows_kept":44,"cut":false,"hidden":false,"merged":[[38,6,38,8],[39,4,39,8],[40,4,40,8],[41,4,41,8],[43,6,43,8],[34,8,36,8],[5,0,5,8],[6,0,6,8],[9,0,12,0],[9,1,12,1],[9,7,12,7],[9,8,12,8],[10,2,10,6],[7,0,7,8],[19,8,21,8],[22,8,24,8],[25,8,27,8],[28,8,30,8],[31,8,33,8],[13,0,15,0],[13,8,15,8],[16,8,18,8],[9,2,9,6],[34,0,36,0],[16,0,18,0],[19,0,21,0],[22,0,24,0],[25,0,27,0],[28,0,30,0],[31,0,33,0]]}
[]
[]
[]
[]
[]
["جدول (25)"]
["قوة العمل غير الكويتية (15 سنة فأكثر) في كل محافظة حسب النوع"]
["Non-Kuwaiti labor force (15 years and more) in each governorate by gender"]
[]
["المحافظة","النوع","العلاقة بالعمل",{"$nulls":4},"Gender","Governorates"]
[null,null,"Work Status"]
[null,null,"يعمل بالحكومة","يعمل بجهة غير حكومية","يعمل في المنازل","متعطل","الجملة"]
[null,null,"Works In Government","Works for a non-governmental entity","Domestic Workers","Unemployed","Total"]
["جملة محافظة العاصمة","ذكر",7908,80588,61292,247,{"$f":"C14+D14+E14+F14","v":150035},"Male","The Capital Governorate"]
[null,"انثى",2105,6507,76066,28,{"$f":"C15+D15+E15+F15","v":84706},"Female"]
[null,"الجملة",10013,87095,137358,275,234741,"Total"]
["جملة محافظة حولي","ذكر",17651,254539,43205,212,315607,"Male","Hawalli Governorate"]
[null,"انثى",11429,61208,67206,94,139937,"Female"]
[null,"الجملة",29080,315747,110411,306,455544,"Total"]
["جملة محافظة الأحمدي","ذكر",10500,297812,70767,494,379573,"Male","Al-Ahmadi Governorate"]
[null,"انثى",7734,21570,56918,126,86348,"Female"]
[null,"الجملة",18234,319382,127685,620,465921,"Total"]
["جملة محافظة الجهراء","ذكر",11583,77144,50116,1474,140317,"Male","Al-Jahra Governorate"]
[null,"انثى",3733,4788,40538,87,49146,"Female"]
[null,"الجملة",15316,81932,90654,1561,189463,"Total"]
["جملة محافظة الفروانية","ذكر",22276,500185,52206,652,575319,"Male","Al-Farwaniya Governorate"]
[null,"انثى",14233,32446,49663,57,96399,"Female"]
[null,"الجملة",36509,532631,101869,709,671718,"Total"]
["جملة محافظة مبارك الكبير","ذكر",3581,11877,32765,83,48306,"Male","Mubarak Al-Kabeer Governorate"]
[null,"انثى",448,2120,36034,25,38627,"Female"]
[null,"الجملة",4029,13997,68799,108,86933,"Total"]
["غير مبين","ذكر",32,440,31,0,503,"Male","Not Stated"]
[null,"انثى",3,38,40,1,82,"Female"]
[null,"الجملة",35,478,71,1,585,"Total"]
["الجملة","ذكر",73531,1222585,310382,3162,1609660,"Male","Total"]
[null,"انثى",39685,128677,326465,418,495245,"Female"]
[null,"الجملة",113216,1351262,636847,3580,2104905,"Total"]
[]
["العلاقه بقوة العمل = الحالة الوظيفية =الحالة العمليه",{"$nulls":5},"Relationship to work force = Job status = Work status"]
["النشيطون اقتصاديا :حكومه - غير حكومه - يعمل بالمنازل - متعطل = قوة العمل = داخل قوة العمل",null,null,null,"Economically active: government - non-government - home workers - unemployed = labor force = within the labor force"]
["المشتغلون: حكومه - غير حكومة - يعمل بالمنازل",null,null,null,"Employed: governmental - non-governmental - domestic workers"]
["غير النشيطون اقتصاديا = خارج قوة العمل = طالب = متفرغة لأعمال المنزل = متقاعد",null,null,null,"Economically inactive = out of the labor force = student = full-time home worker = retired"]
[]
["المصدر: الهيئة العامة للمعلومات المدنية",{"$nulls":5},"Source: The Public Authority For Civil Information"]